[Event "*** SCC Grand Prix: Titled Tuesday Blitz"]
[Site "Chess.com"]
[Date "2020.07.07"]
[Round "7"]
[White "Stronger1799"]
[Black "allvim"]
[Result "0-1"]
[WhiteElo "2472"]
[BlackElo "2278"]
[TimeControl "180+1"]
[EndTime "11:19:44 PDT"]
[Termination "allvim won by resignation"]

1. e4 {[%clk 0:02:52.3]} 1... c5 {[%clk 0:02:59.3]} 2. Nf3 {[%clk 0:02:52.4]}
2... d6 {[%clk 0:02:58.6]} 3. d4 {[%clk 0:02:53.1]} 3... cxd4 {[%clk 0:02:59.5]}
4. Nxd4 {[%clk 0:02:54]} 4... Nf6 {[%clk 0:02:59.1]} 5. Nc3 {[%clk 0:02:54.6]}
5... a6 {[%clk 0:02:59]} 6. f3 {[%clk 0:02:55.2]} 6... e5 {[%clk 0:02:58.4]} 7.
Nb3 {[%clk 0:02:55.8]} 7... h5 {[%clk 0:02:59]} 8. Be3 {[%clk 0:02:56.4]} 8...
Be6 {[%clk 0:02:59.4]} 9. Qd2 {[%clk 0:02:57.1]} 9... Be7 {[%clk 0:03:00.1]} 10.
O-O-O {[%clk 0:02:57.6]} 10... Nbd7 {[%clk 0:03:00.8]} 11. Kb1 {[%clk
0:02:57.4]} 11... Qc7 {[%clk 0:03:00.9]} 12. Nd5 {[%clk 0:02:57.7]} 12... Nxd5
{[%clk 0:03:01.2]} 13. exd5 {[%clk 0:02:58.6]} 13... Bf5 {[%clk 0:03:01.9]} 14.
Bd3 {[%clk 0:02:58.9]} 14... Bxd3 {[%clk 0:03:02]} 15. Qxd3 {[%clk 0:02:59.8]}
15... Rc8 {[%clk 0:03:02.4]} 16. Nd2 {[%clk 0:02:54.7]} 16... Nb6 {[%clk
0:02:56.7]} 17. Bxb6 {[%clk 0:02:49.2]} 17... Qxb6 {[%clk 0:02:57.6]} 18. g4
{[%clk 0:02:44.8]} 18... hxg4 {[%clk 0:02:47.2]} 19. fxg4 {[%clk 0:02:45.7]}
19... Qb4 {[%clk 0:02:35.8]} 20. Qf5 {[%clk 0:02:43.9]} 20... O-O {[%clk
0:02:26.1]} 21. h4 {[%clk 0:02:32.2]} 21... Qf4 {[%clk 0:02:11.4]} 22. Qd7
{[%clk 0:02:21.1]} 22... Rfe8 {[%clk 0:01:16.2]} 23. Rhf1 {[%clk 0:02:10.8]}
23... Qb4 {[%clk 0:01:10]} 24. c3 {[%clk 0:01:51.4]} 24... Qb5 {[%clk
0:01:04.9]} 25. Qf5 {[%clk 0:01:49.4]} 25... Rf8 {[%clk 0:01:03.2]} 26. h5
{[%clk 0:01:49.1]} 26... Rxc3 {[%clk 0:00:55.5]} 27. Ne4 {[%clk 0:01:46]} 27...
Re3 {[%clk 0:00:30.2]} 28. g5 {[%clk 0:01:44]} 28... Re2 {[%clk 0:00:23.4]} 29.
Nd2 {[%clk 0:01:19]} 29... Qxd5 {[%clk 0:00:22.6]} 30. Qc2 {[%clk 0:00:28.2]}
30... Bxg5 {[%clk 0:00:18.6]} 31. Ne4 {[%clk 0:00:28]} 31... Rxc2 {[%clk
0:00:18.2]} 32. Rxd5 {[%clk 0:00:28.2]} 32... Rg2 {[%clk 0:00:16.4]} 33. Rxd6
{[%clk 0:00:27.2]} 33... Bf4 {[%clk 0:00:16.3]} 34. h6 {[%clk 0:00:24.3]} 34...
Bxh6 {[%clk 0:00:12.1]} 35. Rd7 {[%clk 0:00:22.5]} 35... f5 {[%clk 0:00:12.1]}
36. Nd6 {[%clk 0:00:21.5]} 36... f4 {[%clk 0:00:10.7]} 37. Rxb7 {[%clk
0:00:19.8]} 37... f3 {[%clk 0:00:11.2]} 38. Ne4 {[%clk 0:00:19.3]} 38... f2
{[%clk 0:00:11.3]} 39. Rd7 {[%clk 0:00:14.3]} 39... Rf4 {[%clk 0:00:11]} 40.
Rd8+ {[%clk 0:00:11.4]} 40... Kh7 {[%clk 0:00:10.6]} 41. Nd2 {[%clk 0:00:10.7]}
41... Rg1 {[%clk 0:00:09.3]} 42. Re8 {[%clk 0:00:09.8]} 42... Rd4 {[%clk
0:00:07.9]} 43. Kc2 {[%clk 0:00:05.6]} 43... Rxd2+ {[%clk 0:00:07.7]} 0-1

[Event "*** SCC Grand Prix: Titled Tuesday Blitz"]
[Site "Chess.com"]
[Date "2020.07.07"]
[Round "7"]
[White "EvgenyRomanov"]
[Black "KNCP_719"]
[Result "1-0"]
[WhiteElo "2630"]
[BlackElo "2475"]
[TimeControl "180+1"]
[EndTime "11:19:45 PDT"]
[Termination "EvgenyRomanov won by resignation"]

1. e4 {[%clk 0:03:00.9]} 1... c6 {[%clk 0:02:58.3]} 2. d4 {[%clk 0:02:59.2]}
2... d5 {[%clk 0:02:58.7]} 3. e5 {[%clk 0:02:58.5]} 3... c5 {[%clk 0:02:58.6]}
4. dxc5 {[%clk 0:02:57.1]} 4... e6 {[%clk 0:02:59.1]} 5. a3 {[%clk 0:02:55]}
5... Bxc5 {[%clk 0:02:59]} 6. b4 {[%clk 0:02:54.9]} 6... Be7 {[%clk 0:02:59.5]}
7. Nf3 {[%clk 0:02:53.6]} 7... Nd7 {[%clk 0:02:56.3]} 8. Bd3 {[%clk 0:02:49.6]}
8... a5 {[%clk 0:02:54.9]} 9. b5 {[%clk 0:02:47]} 9... Qc7 {[%clk 0:02:52.5]}
10. Qe2 {[%clk 0:02:37.6]} 10... Nc5 {[%clk 0:02:02.5]} 11. O-O {[%clk
0:02:33.1]} 11... a4 {[%clk 0:01:31.7]} 12. Be3 {[%clk 0:02:20.7]} 12... Bd7
{[%clk 0:01:18.8]} 13. Rc1 {[%clk 0:02:18.7]} 13... Nh6 {[%clk 0:01:09.6]} 14.
Bxh6 {[%clk 0:02:15.1]} 14... gxh6 {[%clk 0:01:10.5]} 15. Qe3 {[%clk 0:02:10.9]}
15... Rc8 {[%clk 0:01:00.1]} 16. Rf1 {[%clk 0:01:40.4]} 16... Nxd3 {[%clk
0:00:46.5]} 17. cxd3 {[%clk 0:01:41.3]} 17... Bxb5 {[%clk 0:00:46.7]} 18. Nd4
{[%clk 0:01:10.3]} 18... Bd7 {[%clk 0:00:31.5]} 19. Nd2 {[%clk 0:01:09.1]} 19...
Qb6 {[%clk 0:00:10.6]} 20. N2f3 {[%clk 0:01:06.6]} 20... Rc3 {[%clk 0:00:09.5]}
21. Qxh6 {[%clk 0:00:45.8]} 21... Rxd3 {[%clk 0:00:08.9]} 22. Qg7 {[%clk
0:00:44.9]} 22... Rf8 {[%clk 0:00:08.7]} 23. Rab1 {[%clk 0:00:44.4]} 23... Qa6
{[%clk 0:00:07.7]} 24. Qxh7 {[%clk 0:00:43]} 24... Rxa3 {[%clk 0:00:07]} 25.
Rfc1 {[%clk 0:00:39.8]} 25... Ra2 {[%clk 0:00:05.5]} 26. h4 {[%clk 0:00:33.3]}
26... Kd8 {[%clk 0:00:05.2]} 27. h5 {[%clk 0:00:33.1]} 27... a3 {[%clk
0:00:04.9]} 28. h6 {[%clk 0:00:32.7]} 28... Rb2 {[%clk 0:00:03.9]} 29. Ra1
{[%clk 0:00:32.1]} 29... a2 {[%clk 0:00:03.8]} 30. Qg7 {[%clk 0:00:31.6]} 30...
Qb6 {[%clk 0:00:02.8]} 31. h7 {[%clk 0:00:30.3]} 31... Rb1 {[%clk 0:00:03.1]}
32. Qxf8+ {[%clk 0:00:26.8]} 32... Bxf8 {[%clk 0:00:02.9]} 33. h8=Q {[%clk
0:00:27]} 33... Ke8 {[%clk 0:00:03.1]} 34. Qh7 {[%clk 0:00:06.5]} 34... Rxa1
{[%clk 0:00:01.9]} 35. Rxa1 {[%clk 0:00:05.8]} 35... Qb2 {[%clk 0:00:02.8]} 36.
Nc2 {[%clk 0:00:04.8]} 36... Qxc2 {[%clk 0:00:02.6]} 37. Qxc2 {[%clk 0:00:03.7]}
1-0

[Event "*** SCC Grand Prix: Titled Tuesday Blitz"]
[Site "Chess.com"]
[Date "2020.07.07"]
[Round "7"]
[White "fridaywins"]
[Black "TheLawAdv"]
[Result "1-0"]
[WhiteElo "2291"]
[BlackElo "2062"]
[TimeControl "180+1"]
[EndTime "11:19:45 PDT"]
[Termination "fridaywins won by resignation"]

1. e4 {[%clk 0:03:00.9]} 1... c5 {[%clk 0:02:56.9]} 2. Nf3 {[%clk 0:03:00.8]}
2... d6 {[%clk 0:02:56.5]} 3. d4 {[%clk 0:02:57.3]} 3... cxd4 {[%clk 0:02:57.4]}
4. Nxd4 {[%clk 0:02:55.6]} 4... Nf6 {[%clk 0:02:54.3]} 5. Nc3 {[%clk 0:02:55.7]}
5... e5 {[%clk 0:02:52.5]} 6. Bb5+ {[%clk 0:02:54.5]} 6... Bd7 {[%clk
0:02:48.1]} 7. Bxd7+ {[%clk 0:02:53.6]} 7... Qxd7 {[%clk 0:02:48.5]} 8. Nde2
{[%clk 0:02:45.7]} 8... Be7 {[%clk 0:02:43.8]} 9. O-O {[%clk 0:02:39.7]} 9...
O-O {[%clk 0:02:41.1]} 10. f4 {[%clk 0:02:40.3]} 10... exf4 {[%clk 0:02:39.7]}
11. Nxf4 {[%clk 0:02:39.3]} 11... Nc6 {[%clk 0:02:39.8]} 12. Nfd5 {[%clk
0:02:38]} 12... Nxd5 {[%clk 0:02:38.8]} 13. Nxd5 {[%clk 0:02:37.4]} 13... Ne5
{[%clk 0:02:27.4]} 14. Bf4 {[%clk 0:02:34.4]} 14... Ng6 {[%clk 0:02:09.4]} 15.
Bg3 {[%clk 0:02:32.8]} 15... Bg5 {[%clk 0:02:03.5]} 16. Kh1 {[%clk 0:02:23]}
16... Rac8 {[%clk 0:01:59.4]} 17. Rf5 {[%clk 0:02:17.7]} 17... Bh4 {[%clk
0:01:40.5]} 18. Bxh4 {[%clk 0:01:54.3]} 18... Nxh4 {[%clk 0:01:39.2]} 19. Qg4
{[%clk 0:01:48.8]} 19... Ng6 {[%clk 0:01:11.1]} 20. c3 {[%clk 0:01:45]} 20...
Qe6 {[%clk 0:01:10.2]} 21. Raf1 {[%clk 0:01:39.9]} 21... Rc4 {[%clk 0:01:06.3]}
22. Nf4 {[%clk 0:00:55.2]} 22... Rxe4 {[%clk 0:00:47.2]} 23. Nxe6 {[%clk
0:00:51.2]} 23... Rxg4 {[%clk 0:00:44]} 24. Nxf8 {[%clk 0:00:51]} 24... Nxf8
{[%clk 0:00:42.2]} 25. Rxf7 {[%clk 0:00:49.3]} 25... Ng6 {[%clk 0:00:38.6]} 26.
Rxb7 {[%clk 0:00:46.7]} 26... Ra4 {[%clk 0:00:37.1]} 27. a3 {[%clk 0:00:45.3]}
27... h6 {[%clk 0:00:36.2]} 28. h3 {[%clk 0:00:43.6]} 28... Ne5 {[%clk 0:00:27]}
29. Rd1 {[%clk 0:00:38.1]} 29... Ra6 {[%clk 0:00:24.3]} 30. Kh2 {[%clk
0:00:27.2]} 30... Kh7 {[%clk 0:00:23.9]} 31. Kg3 {[%clk 0:00:27]} 31... Kg6
{[%clk 0:00:24.5]} 32. Rd4 {[%clk 0:00:22.5]} 32... Kf6 {[%clk 0:00:20.2]} 33.
a4 {[%clk 0:00:21.8]} 33... g5 {[%clk 0:00:18.5]} 34. b4 {[%clk 0:00:21.6]}
34... Rc6 {[%clk 0:00:17.4]} 35. c4 {[%clk 0:00:20]} 35... Nxc4 {[%clk
0:00:15.5]} 36. b5 {[%clk 0:00:20]} 36... Rc5 {[%clk 0:00:14.8]} 37. Rxa7 {[%clk
0:00:18.9]} 37... d5 {[%clk 0:00:13.2]} 38. a5 {[%clk 0:00:18.2]} 38... Rxb5
{[%clk 0:00:12.2]} 39. a6 {[%clk 0:00:18.3]} 39... Ke5 {[%clk 0:00:12.2]} 40.
Rd1 {[%clk 0:00:17.2]} 40... Rb3+ {[%clk 0:00:12.3]} 41. Kh2 {[%clk 0:00:18.1]}
41... Ra3 {[%clk 0:00:12.8]} 42. Ra8 {[%clk 0:00:18.1]} 42... Kd6 {[%clk
0:00:12.3]} 43. a7 {[%clk 0:00:18.2]} 43... Kc5 {[%clk 0:00:12.8]} 44. Rc8+
{[%clk 0:00:18]} 44... Kd6 {[%clk 0:00:12]} 45. a8=Q {[%clk 0:00:18.9]} 45...
Rxa8 {[%clk 0:00:11.2]} 46. Rxa8 {[%clk 0:00:18]} 1-0

[Event "*** SCC Grand Prix: Titled Tuesday Blitz"]
[Site "Chess.com"]
[Date "2020.07.07"]
[Round "7"]
[White "GracefulYear"]
[Black "Witik"]
[Result "0-1"]
[WhiteElo "2430"]
[BlackElo "2645"]
[TimeControl "180+1"]
[EndTime "11:19:46 PDT"]
[Termination "Witik won by checkmate"]

1. d4 {[%clk 0:02:49.8]} 1... d5 {[%clk 0:02:59.3]} 2. c4 {[%clk 0:02:50.7]}
2... e6 {[%clk 0:02:59.5]} 3. Nf3 {[%clk 0:02:51.1]} 3... c6 {[%clk 0:02:59.4]}
4. g3 {[%clk 0:02:50.9]} 4... Bd6 {[%clk 0:02:59.4]} 5. Bg2 {[%clk 0:02:51.2]}
5... f5 {[%clk 0:03:00]} 6. O-O {[%clk 0:02:51.8]} 6... Nf6 {[%clk 0:03:00.5]}
7. b3 {[%clk 0:02:51.4]} 7... Qe7 {[%clk 0:03:00.3]} 8. Bb2 {[%clk 0:02:50.6]}
8... O-O {[%clk 0:03:00.3]} 9. Nbd2 {[%clk 0:02:50.1]} 9... b6 {[%clk
0:02:56.6]} 10. Ne5 {[%clk 0:02:50.3]} 10... a5 {[%clk 0:02:55.3]} 11. f4 {[%clk
0:02:49.9]} 11... Bb7 {[%clk 0:02:49.8]} 12. Rc1 {[%clk 0:02:47.8]} 12... Na6
{[%clk 0:02:45.7]} 13. e3 {[%clk 0:02:45.8]} 13... Ne4 {[%clk 0:02:42.8]} 14.
Ndf3 {[%clk 0:02:44.6]} 14... c5 {[%clk 0:02:37.3]} 15. Qe2 {[%clk 0:02:30.7]}
15... a4 {[%clk 0:02:23.9]} 16. Ba1 {[%clk 0:02:22.4]} 16... a3 {[%clk
0:02:20.5]} 17. Rfd1 {[%clk 0:02:20.4]} 17... Nb4 {[%clk 0:02:19.8]} 18. Kh1
{[%clk 0:02:06.2]} 18... Rf6 {[%clk 0:02:05.9]} 19. dxc5 {[%clk 0:02:02.3]}
19... bxc5 {[%clk 0:02:05.6]} 20. cxd5 {[%clk 0:02:00.2]} 20... exd5 {[%clk
0:02:04.3]} 21. Nd3 {[%clk 0:01:59.6]} 21... Rh6 {[%clk 0:02:02.8]} 22. Kg1
{[%clk 0:01:54.6]} 22... Ba6 {[%clk 0:02:02.5]} 23. Nfe1 {[%clk 0:01:48.3]}
23... Kh8 {[%clk 0:01:07.1]} 24. Qf3 {[%clk 0:01:28.3]} 24... Nxa2 {[%clk
0:01:06.6]} 25. Rc2 {[%clk 0:01:22.5]} 25... Nb4 {[%clk 0:01:02.9]} 26. Nxb4
{[%clk 0:01:21.7]} 26... cxb4 {[%clk 0:01:03.8]} 27. Nd3 {[%clk 0:01:16]} 27...
Bxd3 {[%clk 0:00:57.3]} 28. Rxd3 {[%clk 0:01:06.2]} 28... Nc3 {[%clk 0:00:44.1]}
29. Bxc3 {[%clk 0:00:56.2]} 29... bxc3 {[%clk 0:00:44.2]} 30. Qxd5 {[%clk
0:00:56.3]} 30... Rf8 {[%clk 0:00:27]} 31. Rdxc3 {[%clk 0:00:47.7]} 31... Bb8
{[%clk 0:00:19]} 32. Rc8 {[%clk 0:00:42.6]} 32... Qxe3+ {[%clk 0:00:17.6]} 33.
Kf1 {[%clk 0:00:37.7]} 33... Rf6 {[%clk 0:00:17.2]} 34. Re2 {[%clk 0:00:13.9]}
34... Qxe2+ {[%clk 0:00:08.2]} 35. Kxe2 {[%clk 0:00:13.2]} 35... Rxc8 {[%clk
0:00:09.1]} 36. Qb7 {[%clk 0:00:12.9]} 36... Re8+ {[%clk 0:00:09.1]} 37. Kd3
{[%clk 0:00:12.4]} 37... Bd6 {[%clk 0:00:07.7]} 38. Bc6 {[%clk 0:00:11.4]} 38...
Rd8 {[%clk 0:00:07.4]} 39. Qb6 {[%clk 0:00:11]} 39... Bc7+ {[%clk 0:00:06.8]}
40. Qd4 {[%clk 0:00:11.1]} 40... Rxd4+ {[%clk 0:00:06.9]} 41. Kxd4 {[%clk
0:00:12]} 41... a2 {[%clk 0:00:07.6]} 42. Bd5 {[%clk 0:00:10.5]} 42... a1=Q+
{[%clk 0:00:08.5]} 43. Kc5 {[%clk 0:00:11.2]} 43... Rb6 {[%clk 0:00:05.8]} 44.
b4 {[%clk 0:00:11.1]} 44... Qc3+ {[%clk 0:00:05.7]} 45. Bc4 {[%clk 0:00:11.5]}
45... Qxb4+ {[%clk 0:00:06.2]} 46. Kd5 {[%clk 0:00:12.4]} 46... Qd6# {[%clk
0:00:06.3]} 0-1

[Event "*** SCC Grand Prix: Titled Tuesday Blitz"]
[Site "Chess.com"]
[Date "2020.07.07"]
[Round "7"]
[White "czasnaszachy"]
[Black "Blagorod"]
[Result "1-0"]
[WhiteElo "2244"]
[BlackElo "2091"]
[TimeControl "180+1"]
[EndTime "11:19:46 PDT"]
[Termination "czasnaszachy won on time"]

1. d4 {[%clk 0:03:00.9]} 1... d5 {[%clk 0:03:00.2]} 2. c4 {[%clk 0:02:58.4]}
2... Nc6 {[%clk 0:02:59.9]} 3. Nc3 {[%clk 0:02:53.9]} 3... dxc4 {[%clk
0:02:59.7]} 4. e3 {[%clk 0:02:51.8]} 4... e5 {[%clk 0:02:52.5]} 5. d5 {[%clk
0:02:29.6]} 5... Nb4 {[%clk 0:02:47.7]} 6. Bxc4 {[%clk 0:02:20.6]} 6... Nf6
{[%clk 0:02:45.6]} 7. e4 {[%clk 0:02:14.8]} 7... Bc5 {[%clk 0:02:36.3]} 8. Nge2
{[%clk 0:02:07.1]} 8... O-O {[%clk 0:02:31.1]} 9. O-O {[%clk 0:02:05.5]} 9...
Bg4 {[%clk 0:02:22]} 10. a3 {[%clk 0:02:00]} 10... Na6 {[%clk 0:02:21.7]} 11.
Qc2 {[%clk 0:01:50.8]} 11... c6 {[%clk 0:02:12.7]} 12. Bg5 {[%clk 0:01:41.6]}
12... h6 {[%clk 0:02:07.2]} 13. Bh4 {[%clk 0:01:32.9]} 13... Nc7 {[%clk
0:02:01.3]} 14. Rad1 {[%clk 0:01:21]} 14... cxd5 {[%clk 0:01:36]} 15. Nxd5
{[%clk 0:01:10.8]} 15... Ncxd5 {[%clk 0:01:29.3]} 16. Rxd5 {[%clk 0:00:40.8]}
16... Qc8 {[%clk 0:01:15.9]} 17. Rxe5 {[%clk 0:00:23.6]} 17... Nd7 {[%clk
0:00:51.3]} 18. Rxc5 {[%clk 0:00:15.3]} 18... Qxc5 {[%clk 0:00:46]} 19. Rd1
{[%clk 0:00:14.6]} 19... Ne5 {[%clk 0:00:43.5]} 20. Bxf7+ {[%clk 0:00:12.7]}
20... Nxf7 {[%clk 0:00:38.2]} 21. Qxc5 {[%clk 0:00:12.4]} 21... Bxe2 {[%clk
0:00:38.8]} 22. Re1 {[%clk 0:00:12.3]} 22... Bd3 {[%clk 0:00:30.7]} 23. e5
{[%clk 0:00:12.5]} 23... Rac8 {[%clk 0:00:23.4]} 24. Qb4 {[%clk 0:00:12.1]}
24... Rfe8 {[%clk 0:00:22.1]} 25. h3 {[%clk 0:00:10.2]} 25... Nxe5 {[%clk
0:00:20.6]} 26. Kh1 {[%clk 0:00:02]} 26... a5 {[%clk 0:00:19.1]} 27. Qb3+ {[%clk
0:00:02.2]} 27... Bc4 {[%clk 0:00:18.7]} 28. Qg3 {[%clk 0:00:02.8]} 28... Nf7
{[%clk 0:00:15.3]} 29. Rxe8+ {[%clk 0:00:02.2]} 29... Rxe8 {[%clk 0:00:15.4]}
30. Kh2 {[%clk 0:00:03]} 30... Bd5 {[%clk 0:00:14.1]} 31. Qd3 {[%clk 0:00:02.3]}
31... Bc6 {[%clk 0:00:13.5]} 32. Qc3 {[%clk 0:00:02.5]} 32... Ne5 {[%clk
0:00:10.7]} 33. Bg3 {[%clk 0:00:02.6]} 33... Nf7 {[%clk 0:00:10]} 34. Qxa5
{[%clk 0:00:02.6]} 34... Re2 {[%clk 0:00:08.6]} 35. Qc3 {[%clk 0:00:02]} 35...
Re8 {[%clk 0:00:07.5]} 36. b4 {[%clk 0:00:02.2]} 36... Bd5 {[%clk 0:00:05.8]}
37. Qd3 {[%clk 0:00:02.2]} 37... Bc6 {[%clk 0:00:05.8]} 38. b5 {[%clk
0:00:02.3]} 38... Be4 {[%clk 0:00:05]} 39. Qc4 {[%clk 0:00:01.5]} 39... Kf8
{[%clk 0:00:01.3]} 40. a4 {[%clk 0:00:01.9]} 1-0

[Event "*** SCC Grand Prix: Titled Tuesday Blitz"]
[Site "Chess.com"]
[Date "2020.07.07"]
[Round "7"]
[White "mr65"]
[Black "alfiefischer77"]
[Result "1/2-1/2"]
[WhiteElo "2105"]
[BlackElo "2296"]
[TimeControl "180+1"]
[EndTime "11:19:48 PDT"]
[Termination "Game drawn by repetition"]

1. e4 {[%clk 0:03:00.9]} 1... c5 {[%clk 0:02:59.8]} 2. d4 {[%clk 0:02:59.8]}
2... cxd4 {[%clk 0:03:00]} 3. c3 {[%clk 0:02:59.9]} 3... dxc3 {[%clk 0:03:00.9]}
4. Nxc3 {[%clk 0:02:59.9]} 4... Nc6 {[%clk 0:03:01]} 5. Nf3 {[%clk 0:03:00.1]}
5... e6 {[%clk 0:03:00.6]} 6. Bc4 {[%clk 0:02:59.9]} 6... d6 {[%clk 0:02:59.9]}
7. O-O {[%clk 0:02:59.3]} 7... Be7 {[%clk 0:03:00]} 8. Qe2 {[%clk 0:02:59.4]}
8... Nf6 {[%clk 0:02:59.7]} 9. Rd1 {[%clk 0:02:59.3]} 9... e5 {[%clk 0:03:00.1]}
10. h3 {[%clk 0:02:56.9]} 10... O-O {[%clk 0:02:59.7]} 11. Be3 {[%clk
0:02:56.4]} 11... Be6 {[%clk 0:02:59.3]} 12. Rac1 {[%clk 0:02:55.1]} 12... Rc8
{[%clk 0:02:55.4]} 13. Nd5 {[%clk 0:02:46.5]} 13... Nxe4 {[%clk 0:02:40.7]} 14.
Nxe7+ {[%clk 0:02:44.1]} 14... Qxe7 {[%clk 0:02:37.3]} 15. Bxe6 {[%clk
0:02:37.1]} 15... Qxe6 {[%clk 0:02:22.3]} 16. Bxa7 {[%clk 0:02:10.1]} 16... d5
{[%clk 0:02:12.6]} 17. Bc5 {[%clk 0:02:04.1]} 17... Rfe8 {[%clk 0:02:06.7]} 18.
a3 {[%clk 0:02:00.4]} 18... Nxc5 {[%clk 0:01:58.8]} 19. Rxc5 {[%clk 0:01:58.5]}
19... d4 {[%clk 0:01:44.6]} 20. b4 {[%clk 0:01:43]} 20... f6 {[%clk 0:00:55]}
21. Rdc1 {[%clk 0:01:11.3]} 21... Ne7 {[%clk 0:00:50.1]} 22. Nxd4 {[%clk
0:01:00]} 22... Rxc5 {[%clk 0:00:41]} 23. Nxe6 {[%clk 0:00:51.8]} 23... Rxc1+
{[%clk 0:00:40.3]} 24. Kh2 {[%clk 0:00:51.5]} 24... Nd5 {[%clk 0:00:27.4]} 25.
Qa2 {[%clk 0:00:35.7]} 25... Rxe6 {[%clk 0:00:23.4]} 26. Qxd5 {[%clk 0:00:34.7]}
26... Kf7 {[%clk 0:00:22.1]} 27. Qxb7+ {[%clk 0:00:33.9]} 27... Re7 {[%clk
0:00:21]} 28. Qe4 {[%clk 0:00:33.4]} 28... g6 {[%clk 0:00:20.2]} 29. b5 {[%clk
0:00:31.9]} 29... f5 {[%clk 0:00:19.4]} 30. Qb4 {[%clk 0:00:29.4]} 30... e4
{[%clk 0:00:16]} 31. b6 {[%clk 0:00:28.2]} 31... Rc8 {[%clk 0:00:13.7]} 32. a4
{[%clk 0:00:27]} 32... f4 {[%clk 0:00:12.3]} 33. a5 {[%clk 0:00:24.4]} 33... g5
{[%clk 0:00:07.9]} 34. a6 {[%clk 0:00:23.4]} 34... e3 {[%clk 0:00:08.2]} 35.
fxe3 {[%clk 0:00:21.7]} 35... fxe3 {[%clk 0:00:08.1]} 36. b7 {[%clk 0:00:20.9]}
36... Rb8 {[%clk 0:00:07.5]} 37. a7 {[%clk 0:00:20.5]} 37... Rbxb7 {[%clk
0:00:07]} 38. Qxb7 {[%clk 0:00:20.4]} 38... Rxb7 {[%clk 0:00:05.9]} 39. a8=Q
{[%clk 0:00:19.7]} 39... Re7 {[%clk 0:00:06.3]} 40. Qd5+ {[%clk 0:00:18.5]}
40... Kf6 {[%clk 0:00:06.3]} 41. Qd4+ {[%clk 0:00:18.2]} 41... Re5 {[%clk
0:00:06]} 42. Qd6+ {[%clk 0:00:16.7]} 42... Kf5 {[%clk 0:00:05.4]} 43. g4+
{[%clk 0:00:15.8]} 43... Kf4 {[%clk 0:00:05]} 44. Qf6+ {[%clk 0:00:15.3]} 44...
Ke4 {[%clk 0:00:04.5]} 45. Qc6+ {[%clk 0:00:15.3]} 45... Kf4 {[%clk 0:00:04.2]}
46. Qf6+ {[%clk 0:00:15]} 46... Ke4 {[%clk 0:00:04.5]} 47. Qc6+ {[%clk 0:00:15]}
47... Kd4 {[%clk 0:00:04.7]} 48. Qd6+ {[%clk 0:00:14.7]} 48... Ke4 {[%clk
0:00:04.1]} 49. Qc6+ {[%clk 0:00:14.5]} 1/2-1/2

[Event "*** SCC Grand Prix: Titled Tuesday Blitz"]
[Site "Chess.com"]
[Date "2020.07.07"]
[Round "7"]
[White "Julianos82"]
[Black "ketster"]
[Result "0-1"]
[WhiteElo "2253"]
[BlackElo "2430"]
[TimeControl "180+1"]
[EndTime "11:19:49 PDT"]
[Termination "ketster won by resignation"]

1. d4 {[%clk 0:03:00.9]} 1... Nf6 {[%clk 0:02:59.2]} 2. Nf3 {[%clk 0:03:00]}
2... d5 {[%clk 0:02:59.1]} 3. Bf4 {[%clk 0:02:59.1]} 3... c5 {[%clk 0:02:58.6]}
4. e3 {[%clk 0:02:59]} 4... Nc6 {[%clk 0:02:58.9]} 5. c3 {[%clk 0:02:58.2]} 5...
Qb6 {[%clk 0:02:55.8]} 6. Nbd2 {[%clk 0:02:51.1]} 6... Qxb2 {[%clk 0:02:36.9]}
7. Rb1 {[%clk 0:02:44.2]} 7... Qxc3 {[%clk 0:02:22.2]} 8. Rc1 {[%clk 0:02:41.8]}
8... Qa3 {[%clk 0:02:20.2]} 9. dxc5 {[%clk 0:02:33.7]} 9... Bg4 {[%clk
0:02:03.3]} 10. Be2 {[%clk 0:02:16.3]} 10... e6 {[%clk 0:02:01.8]} 11. O-O
{[%clk 0:02:15.8]} 11... Bxc5 {[%clk 0:01:49.8]} 12. Nb3 {[%clk 0:01:51.2]}
12... Bd6 {[%clk 0:01:27.4]} 13. Nfd4 {[%clk 0:01:43.5]} 13... Bxe2 {[%clk
0:01:24.1]} 14. Qxe2 {[%clk 0:01:31.8]} 14... Bxf4 {[%clk 0:01:22.7]} 15. exf4
{[%clk 0:01:22.4]} 15... Nxd4 {[%clk 0:01:16.7]} 16. Nxd4 {[%clk 0:01:23.3]}
16... O-O {[%clk 0:01:16.5]} 17. f5 {[%clk 0:01:18.4]} 17... exf5 {[%clk
0:01:12.4]} 18. Nxf5 {[%clk 0:01:14.3]} 18... Rfe8 {[%clk 0:01:09.3]} 19. Qd2
{[%clk 0:01:08.3]} 19... g6 {[%clk 0:00:57.9]} 20. Qd4 {[%clk 0:00:49.5]} 20...
Qa6 {[%clk 0:00:47.6]} 21. Ne3 {[%clk 0:00:27.6]} 21... Re4 {[%clk 0:00:39.8]}
22. Qb2 {[%clk 0:00:26.9]} 22... d4 {[%clk 0:00:36.4]} 23. Nc4 {[%clk
0:00:26.9]} 23... Rd8 {[%clk 0:00:31.2]} 24. Rfd1 {[%clk 0:00:25.3]} 24... d3
{[%clk 0:00:27.3]} 25. h3 {[%clk 0:00:25.1]} 25... Rxc4 {[%clk 0:00:22.8]} 26.
Rxc4 {[%clk 0:00:26]} 26... Qxc4 {[%clk 0:00:22.8]} 27. Qxf6 {[%clk 0:00:26.6]}
27... Qd4 {[%clk 0:00:15.6]} 28. Qf3 {[%clk 0:00:26.3]} 28... d2 {[%clk
0:00:13.5]} 29. Kh2 {[%clk 0:00:25.1]} 29... Qa4 {[%clk 0:00:11.1]} 30. g3
{[%clk 0:00:19.6]} 30... b6 {[%clk 0:00:10.8]} 31. h4 {[%clk 0:00:19.3]} 31...
Qxa2 {[%clk 0:00:10.4]} 32. h5 {[%clk 0:00:14.7]} 32... Qd5 {[%clk 0:00:10.5]}
33. Qf6 {[%clk 0:00:08.2]} 33... Qxh5+ {[%clk 0:00:09.9]} 34. Kg2 {[%clk
0:00:08.6]} 34... Qd5+ {[%clk 0:00:09.7]} 35. Kh2 {[%clk 0:00:07.9]} 35... Qd4
{[%clk 0:00:09.2]} 36. Qf3 {[%clk 0:00:06.9]} 36... a5 {[%clk 0:00:09.4]} 37.
Kh3 {[%clk 0:00:07.1]} 37... a4 {[%clk 0:00:08.6]} 38. Kh2 {[%clk 0:00:07.1]}
38... b5 {[%clk 0:00:09.1]} 39. g4 {[%clk 0:00:03.7]} 39... b4 {[%clk
0:00:09.1]} 40. Kg3 {[%clk 0:00:04]} 40... a3 {[%clk 0:00:09.5]} 41. Rh1 {[%clk
0:00:03.5]} 41... Qd3 {[%clk 0:00:08.8]} 0-1